bitfinex/quotes_BTCUSD_20241223
["timestamp","ask_amount","ask_price","bid_price","bid_amount"]
[1734978605810,0.12540892,93358.0,93345.0,0.214258]
[1734978606009,0.10398632,93358.0,93345.0,0.214258]
[1734978606309,0.09597802,93367.0,93353.0,0.21424]
[1734978606561,0.10398632,93366.0,93351.0,0.214244]
[1734978606762,0.31819732,93366.0,93351.0,0.214244]
[1734978607160,0.003,93358.0,93351.0,0.214244]
[1734978607363,0.003,93358.0,93346.0,0.0455]
[1734978607364,0.00010278,93367.0,93352.0,0.00107119]
[1734978607567,0.00010278,93367.0,93363.0,0.214216]
[1734978608802,0.007,93366.0,93363.0,0.214216]
[1734978609125,1.03250278,93367.0,93363.0,0.214216]
[1734978609321,1.03350278,93367.0,93363.0,0.220216]
[1734978609728,1.03250278,93367.0,93363.0,0.214216]
[1734978610235,0.001,93366.0,93363.0,0.428432]
[1734978610438,0.001,93366.0,93363.0,0.217216]
[1734978610650,0.001,93366.0,93363.0,0.223216]
[1734978611147,0.001,93366.0,93363.0,0.220216]
[1734978611362,0.001,93366.0,93363.0,0.006]
[1734978611641,0.10398632,93365.0,93363.0,0.006]
[1734978611881,0.15,93364.0,93346.0,0.0455]
[1734978612123,0.214217,93363.0,93346.0,0.0455]
[1734978612598,0.25398632,93364.0,93347.0,0.214254]
[1734978613340,0.001,93363.0,93347.0,0.214254]
[1734978613581,0.25398632,93364.0,93347.0,0.214254]
[1734978613824,0.25398632,93364.0,93340.0,8.55e-05]
[1734978613825,0.10398632,93363.0,93341.0,0.214266]
[1734978614078,0.214222,93361.0,93341.0,0.214266]
[1734978614341,0.15,93358.0,93340.0,8.55e-05]
[1734978614609,0.21425,93349.0,93340.0,8.55e-05]
[1734978614855,0.10398632,93348.0,93340.0,8.55e-05]
[1734978615634,0.15,93345.0,93340.0,8.55e-05]
[1734978615868,0.214267,93342.0,93340.0,8.55e-05]
[1734978616114,0.25398632,93341.0,93340.0,8.55e-05]
[1734978616613,0.25398632,93341.0,93340.0,0.0050855]
[1734978616819,0.25398632,93341.0,93340.0,0.0030855]
[1734978617439,0.25398632,93341.0,93340.0,8.55e-05]
[1734978618646,0.25498632,93341.0,93340.0,8.55e-05]
[1734978618789,0.25598632,93341.0,93340.0,8.55e-05]
[1734978619187,0.25498632,93341.0,93340.0,8.55e-05]
[1734978619870,0.001,93341.0,93340.0,8.55e-05]
[1734978620945,0.001,93341.0,93340.0,0.0010855]
[1734978621378,0.15,93352.0,93340.0,0.0010855]
[1734978621588,0.15,93350.0,93340.0,0.0010855]
[1734978621760,0.25398632,93350.0,93340.0,0.0010855]
[1734978622044,0.25398632,93350.0,93340.0,0.0020855]
[1734978622217,0.25398632,93350.0,93340.0,0.0010855]
[1734978622422,0.25398632,93350.0,93330.0,0.1894775]
[1734978622633,0.10398632,93349.0,93331.0,0.21536234]
[1734978622840,0.10398632,93349.0,93331.0,0.214291]
[1734978623270,0.214252,93348.0,93326.0,0.214302]
[1734978623917,0.004,93350.0,93318.0,0.2144055]
[1734978623918,0.214256,93346.0,93318.0,0.2144055]
[1734978624121,0.2252,93341.0,93318.0,8.55e-05]
[1734978624329,0.214308,93324.0,93318.0,8.55e-05]
[1734978624507,0.10398632,93323.0,93318.0,8.55e-05]
[1734978625429,0.10398632,93323.0,93318.0,0.0010855]
[1734978625639,0.10398632,93323.0,93318.0,0.00024554]
[1734978625847,0.01039863,93322.0,93318.0,0.00024554]
[1734978626055,0.364318,93319.0,93318.0,0.00324554]
[1734978626264,0.46830432,93319.0,93318.0,0.00324554]
[1734978626476,0.46830432,93319.0,93318.0,0.00224554]
[1734978626902,0.46830432,93319.0,93318.0,0.00324554]
[1734978627125,0.57534785,93319.0,93318.0,0.00324554]
[1734978627333,0.54760432,93319.0,93318.0,0.00324554]
[1734978627542,0.54760432,93319.0,93309.0,0.00135852]
[1734978627757,0.443618,93319.0,93318.0,0.002]
[1734978627958,0.214323,93317.0,93309.0,0.00015939]
[1734978628179,0.10398632,93316.0,93309.0,0.00015939]
[1734978628831,0.10398632,93316.0,93309.0,0.00115939]
[1734978629040,0.10398632,93316.0,93309.0,0.00015939]
[1734978629226,0.214327,93315.0,93309.0,0.00015939]
[1734978629355,0.10398632,93314.0,93309.0,0.00315939]
[1734978629792,0.10398632,93314.0,93309.0,0.00215939]
[1734978630196,0.10398632,93314.0,93309.0,0.00315939]
[1734978631039,0.214335,93312.0,93309.0,0.00315939]
[1734978631240,0.31832132,93312.0,93309.0,0.00115939]
[1734978631460,0.10398632,93312.0,93309.0,0.00315939]
[1734978631811,0.10398632,93312.0,93309.0,0.00215939]
[1734978631989,0.10398632,93312.0,93309.0,0.00315939]
[1734978632412,0.05326373,93311.0,93309.0,0.00015939]
[1734978632548,0.10398632,93312.0,93309.0,0.00015939]
[1734978632753,0.10398632,93312.0,93309.0,0.00215939]
[1734978633182,0.10398632,93312.0,93309.0,0.00115939]
[1734978633589,0.10398632,93312.0,93309.0,0.00315939]
[1734978634440,0.15,93324.0,93309.0,0.00315939]
[1734978634603,0.15,93322.0,93309.0,0.00315939]
[1734978634855,0.15,93322.0,93309.0,0.00115939]
[1734978634856,0.10398632,93321.0,93309.0,0.00115939]
[1734978635060,0.15,93320.0,93309.0,0.00315939]
[1734978635431,0.15,93318.0,93309.0,0.00315939]
[1734978635646,0.15,93318.0,93309.0,0.00015939]
[1734978635647,0.214337,93311.0,93309.0,0.00015939]
[1734978636059,0.214328,93315.0,93309.0,0.00015939]
[1734978636251,0.25398632,93314.0,93309.0,0.00015939]
[1734978636453,0.001,93320.0,93309.0,0.00015939]
[1734978636884,0.151,93320.0,93309.0,0.00015939]
[1734978637469,0.214318,93319.0,93309.0,0.00015939]
[1734978637646,0.15,93320.0,93309.0,0.00015939]
[1734978638039,0.214318,93319.0,93309.0,0.00315939]
[1734978638231,0.214318,93319.0,93309.0,0.00115939]
[1734978638623,0.214318,93319.0,93309.0,0.00415939]
[1734978638820,0.214332,93313.0,93309.0,0.00315939]
[1734978639022,0.10398632,93312.0,93309.0,0.00415939]
[1734978639544,0.214337,93311.0,93309.0,0.00315939]
[1734978639777,0.10398632,93310.0,93309.0,0.00315939]
[1734978639979,0.11638941,93310.0,93309.0,0.00415939]
[1734978640183,0.11638941,93310.0,93309.0,0.00424489]
[1734978640687,0.11638941,93310.0,93309.0,0.00124489]
[1734978641309,0.19138941,93310.0,93309.0,0.00024489]
[1734978641532,0.19138941,93310.0,93309.0,0.00424489]
[1734978641939,0.001,93312.0,93309.0,0.00324489]
[1734978642120,0.10398632,93311.0,93309.0,0.00024489]
[1734978642351,0.10398632,93312.0,93309.0,0.00524489]
[1734978642559,0.15,93320.0,93309.0,0.00524489]
[1734978642764,0.15,93320.0,93309.0,0.00024489]
[1734978643147,0.001,93312.0,93309.0,0.00024489]
[1734978643933,0.001,93310.0,93309.0,0.21458489]
[1734978644139,0.001,93310.0,93309.0,0.00024489]
[1734978644456,0.2143,93327.0,93309.0,0.00024489]
[1734978644871,0.2143,93327.0,93309.0,0.21658489]
[1734978645098,0.2143,93327.0,93309.0,0.21458489]
[1734978645243,0.0777,93338.0,93309.0,0.21458489]
[1734978645244,0.0777,93338.0,93309.0,0.00424489]
[1734978645448,0.214273,93339.0,93310.0,0.04947153]
[1734978645657,0.214273,93339.0,93317.0,0.214321]
[1734978646065,0.214263,93343.0,93317.0,0.214321]
[1734978646272,0.0779,93349.0,93318.0,0.00107151]
[1734978646501,0.000171,93351.0,93318.0,0.18365783]
[1734978646706,0.214256,93346.0,93318.0,0.0786]
[1734978646969,0.214256,93346.0,93318.0,0.07967139]
[1734978647785,0.001171,93319.0,93318.0,0.08267139]
[1734978648362,0.001171,93319.0,93318.0,0.0816]
[1734978648571,0.000171,93319.0,93318.0,0.0836]
[1734978648971,0.001171,93319.0,93318.0,0.0866]
[1734978649452,0.001171,93319.0,93318.0,0.08767139]
[1734978650272,0.000171,93319.0,93318.0,0.08467139]
[1734978650621,0.001171,93319.0,93318.0,0.08767139]
[1734978651140,0.001171,93319.0,93318.0,0.0866]
[1734978652517,0.001171,93319.0,93318.0,0.08767139]
[1734978653304,0.000171,93319.0,93318.0,0.20665771]
[1734978653504,0.000171,93319.0,93318.0,0.20558632]
[1734978653737,0.001171,93319.0,93318.0,0.21258632]
[1734978653914,0.00059093,93319.0,93318.0,0.21258632]
[1734978654118,0.00059093,93319.0,93318.0,0.20558632]
[1734978654315,0.000171,93351.0,93334.0,0.214282]
[1734978655221,0.214247,93350.0,93331.0,0.2152846]
[1734978655425,0.10398632,93349.0,93331.0,0.0009946]
[1734978655611,0.214287,93333.0,93331.0,0.0009946]
[1734978655804,0.214287,93333.0,93317.0,8.54e-05]
[1734978656269,0.214291,93331.0,93317.0,8.54e-05]
[1734978656602,0.0808,93332.0,93317.0,8.54e-05]
[1734978657126,0.0808,93341.0,93317.0,8.54e-05]
[1734978657327,0.001,93333.0,93326.0,0.2143]
[1734978657536,0.0808,93341.0,93326.0,0.2143]
[1734978658254,0.31825632,93340.0,93320.0,0.214316]
[1734978658457,0.21428,93336.0,93326.0,0.003]
[1734978658668,0.10398632,93335.0,93326.0,0.003]
[1734978658872,0.10398632,93335.0,93326.0,0.004]
[1734978659091,0.214284,93334.0,93326.0,0.004]
[1734978659724,0.214284,93334.0,93326.0,0.001]
[1734978660145,0.10398632,93335.0,93326.0,0.001]
[1734978660146,0.214295,93330.0,93326.0,0.003]
[1734978660386,0.10398632,93335.0,93317.0,8.54e-05]
[1734978660566,0.13746495,93335.0,93317.0,8.54e-05]
[1734978660765,0.001,93334.0,93317.0,8.54e-05]
[1734978661460,0.2269,93332.0,93317.0,8.54e-05]
[1734978661675,0.15,93320.0,93317.0,8.54e-05]
[1734978661881,0.15,93318.0,93317.0,8.54e-05]
[1734978662092,0.25398632,93318.0,93317.0,8.54e-05]
[1734978662300,0.0761,93332.0,93317.0,8.54e-05]
[1734978662511,0.2143,93327.0,93305.0,0.02278885]
[1734978662718,0.10398632,93326.0,93305.0,0.02278885]
[1734978662923,0.01105786,93331.0,93305.0,0.02278885]
[1734978662924,0.01105786,93331.0,93308.0,0.214343]
[1734978663126,0.00015989,93332.0,93320.0,0.214314]
[1734978663329,0.00015989,93332.0,93321.0,0.00107144]
[1734978663545,0.00015989,93332.0,93322.0,0.21538241]
[1734978663726,0.00015989,93332.0,93322.0,0.214311]
[1734978663931,0.00015989,93332.0,93324.0,0.214307]
[1734978664137,0.00015989,93332.0,93325.0,0.00107141]
[1734978664754,0.00015989,93332.0,93322.0,0.214311]
[1734978665191,0.00015989,93332.0,93324.0,0.001]
[1734978665572,0.00015989,93332.0,93322.0,0.214311]
[1734978665970,0.00015989,93332.0,93322.0,0.215311]
[1734978666149,0.00015989,93332.0,93324.0,0.002]
[1734978666351,0.000171,93329.0,93324.0,0.002]
[1734978666927,0.000171,93329.0,93322.0,0.215311]
[1734978667136,0.000171,93329.0,93326.0,0.214301]
[1734978667335,0.000171,93329.0,93328.0,0.123]
[1734978667567,0.000171,93329.0,93328.0,0.76668332]
[1734978667772,0.76579932,93367.0,93350.0,0.214247]
[1734978667953,0.76595939,93367.0,93351.0,0.02249573]
[1734978668157,0.76595939,93367.0,93354.0,0.214237]
[1734978668706,0.76595939,93367.0,93355.0,0.10505735]
[1734978668910,0.76595939,93367.0,93366.0,0.23721]
[1734978669115,0.76595939,93367.0,93366.0,0.44119632]
[1734978669316,0.09587524,93383.0,93382.0,0.214174]
[1734978669522,0.09587524,93383.0,93382.0,0.31816032]
[1734978669732,0.000171,93384.0,93382.0,0.34116032]
[1734978669930,0.000171,93384.0,93383.0,0.10505686]
[1734978670152,0.000171,93384.0,93381.0,0.0484]
[1734978670323,0.000171,93384.0,93381.0,0.04947068]
[1734978670544,0.000171,93384.0,93382.0,0.005]
[1734978670756,0.000171,93384.0,93382.0,0.242174]
[1734978670757,0.001,93383.0,93382.0,0.242174]
[1734978670928,0.000171,93384.0,93383.0,0.023]
[1734978671128,0.000171,93384.0,93383.0,0.12698632]
[1734978671329,0.001171,93384.0,93383.0,0.13298632]
[1734978671555,0.000171,93384.0,93383.0,0.12698632]
[1734978671719,0.000171,93384.0,93383.0,0.37698632]
[1734978671917,0.000171,93384.0,93383.0,0.58097264]
[1734978672164,0.000171,93384.0,93383.0,0.70664364]
[1734978672363,0.000171,93384.0,93383.0,1.03954364]
[1734978673372,0.000171,93384.0,93383.0,0.79554364]
[1734978673716,0.000171,93384.0,93383.0,0.79154364]
[1734978673927,0.000171,93384.0,93383.0,0.68755732]
[1734978674135,0.001171,93384.0,93383.0,0.49255732]
[1734978674339,0.000171,93384.0,93383.0,0.48755732]
[1734978674542,0.000171,93384.0,93383.0,0.48555732]
[1734978674789,0.007171,93384.0,93383.0,0.40565732]
[1734978674987,0.000171,93384.0,93383.0,0.003]
[1734978675422,0.000171,93384.0,93378.0,0.00107069]
[1734978675632,0.000171,93384.0,93383.0,0.002]
[1734978675985,0.000171,93384.0,93369.0,0.09575097]
[1734978676191,0.000171,93384.0,93367.0,0.214208]
[1734978676390,0.000171,93384.0,93371.0,0.214197]
[1734978676600,0.002171,93384.0,93383.0,0.006]
[1734978676825,0.001171,93384.0,93383.0,0.006]
[1734978677042,0.006171,93384.0,93383.0,0.006]
[1734978677391,0.001171,93384.0,93383.0,0.006]
[1734978677793,0.001171,93384.0,93371.0,0.214197]
[1734978678277,0.001171,93384.0,93377.0,0.05589488]
[1734978678650,0.001171,93384.0,93377.0,0.05389488]
[1734978678853,0.001171,93384.0,93377.0,0.05589488]
[1734978679421,0.000171,93384.0,93377.0,0.05589488]
[1734978679621,0.000171,93384.0,93378.0,0.0010708]
[1734978679987,0.001171,93384.0,93379.0,0.21418]
[1734978680183,0.001171,93384.0,93381.0,0.214176]
[1734978680397,0.001171,93384.0,93383.0,0.023]
[1734978680576,0.001171,93384.0,93383.0,0.2363178]
[1734978680780,0.001171,93384.0,93383.0,0.4504888]
[1734978680781,0.000171,93384.0,93383.0,0.4504888]
[1734978680985,0.001171,93384.0,93383.0,0.4504888]
[1734978681716,0.001171,93384.0,93383.0,0.8004888]
[1734978681947,0.000171,93384.0,93383.0,0.8044888]
[1734978682383,0.000171,93384.0,93383.0,1.0504888]
[1734978682597,0.000171,93389.0,93388.0,0.373]
[1734978682791,0.0001708,93426.0,93398.0,0.1]
[1734978683005,0.00153345,93400.0,93399.0,0.25505664]
[1734978683212,0.00153345,93400.0,93399.0,0.25398632]
[1734978683338,0.00153345,93400.0,93399.0,0.35398632]
[1734978683531,0.00153345,93400.0,93399.0,0.43438632]
[1734978683783,0.00153345,93400.0,93399.0,0.97613095]
[1734978684224,4.5e-07,93400.0,93399.0,0.97613095]
[1734978684346,0.0001708,93426.0,93409.0,0.564112]
[1734978684547,0.00033077,93410.0,93409.0,0.66809832]
[1734978685394,0.00033077,93410.0,93409.0,0.46809832]
[1734978685606,0.00033077,93410.0,93409.0,0.31809832]
[1734978685807,0.00033077,93410.0,93409.0,0.37131975]
[1734978685808,0.00333077,93410.0,93409.0,0.37131975]
[1734978686009,0.00333077,93410.0,93404.0,0.09575097]
[1734978686665,0.01033077,93410.0,93409.0,0.001]
[1734978686836,0.214112,93409.0,93391.0,0.0009911]
[1734978687261,0.214112,93409.0,93404.0,0.005]
[1734978687415,0.214116,93407.0,93404.0,0.004]
[1734978687823,0.10398632,93408.0,93388.0,0.023]
[1734978688033,0.10398632,93408.0,93389.0,0.0237173]
[1734978688034,0.214136,93399.0,93389.0,0.0237173]
[1734978688496,0.10398632,93408.0,93388.0,0.023]
[1734978688702,0.10398632,93408.0,93382.0,0.2151708]
[1734978688881,0.214116,93407.0,93387.0,0.214162]
[1734978689087,0.00033077,93410.0,93390.0,0.214155]
[1734978689260,0.00033077,93410.0,93391.0,0.00107063]
[1734978689464,0.00033077,93410.0,93393.0,0.214147]
[1734978689677,0.0001708,93408.0,93398.0,0.214135]
[1734978689889,0.0001708,93408.0,93394.0,0.214146]
[1734978690783,0.0001708,93408.0,93398.0,0.214136]
[1734978691485,0.0001708,93408.0,93394.0,0.215146]
[1734978691726,0.0001708,93408.0,93394.0,0.23782294]
[1734978691967,0.0001708,93408.0,93402.0,0.214127]
[1734978692332,0.0001708,93408.0,93403.0,0.214125]
[1734978692524,0.0001708,93408.0,93402.0,0.214127]
[1734978693274,0.0011708,93408.0,93402.0,0.214127]
[1734978693474,0.0011708,93408.0,93403.0,0.42932052]
[1734978693678,0.0011708,93408.0,93405.0,0.428242]
[1734978694018,0.0001708,93408.0,93407.0,0.364116]
[1734978694242,0.0001708,93408.0,93407.0,0.46810232]
[1734978694642,0.0001708,93416.0,93407.0,0.33228632]
[1734978694846,0.0001708,93416.0,93415.0,0.214098]
[1734978695060,0.0001708,93416.0,93415.0,0.31808432]
[1734978696114,0.0001708,93416.0,93415.0,0.214098]
[1734978696349,0.0001708,93416.0,93414.0,0.214099]
[1734978696550,0.0001708,93416.0,93415.0,0.0428208]
[1734978696754,0.0011708,93416.0,93415.0,0.0428208]
[1734978697126,0.0011708,93416.0,93415.0,0.002]
[1734978697343,0.0001708,93416.0,93414.0,0.214099]
[1734978697645,0.0011708,93416.0,93415.0,0.01007041]
[1734978698332,0.0011708,93416.0,93415.0,0.01407041]
[1734978698532,0.0011708,93416.0,93415.0,0.11805673]
[1734978698714,0.0011708,93416.0,93415.0,0.1940941]
[1734978699326,0.0001708,93416.0,93415.0,0.1850941]
[1734978699497,0.0011708,93416.0,93415.0,0.1850941]
[1734978699699,0.0764,93444.0,93415.0,0.1850941]
[1734978699700,0.214052,93435.0,93415.0,0.004]
[1734978700102,0.001,93416.0,93415.0,0.011]
[1734978700718,0.001,93416.0,93415.0,0.007]
[1734978700935,0.214063,93431.0,93415.0,0.003]
[1734978701334,0.001,93416.0,93415.0,0.007]
[1734978701857,0.0010854,93416.0,93415.0,0.007]
[1734978702659,8.54e-05,93416.0,93409.0,0.428221]
[1734978702819,0.0010854,93416.0,93415.0,0.012]
[1734978703213,0.0010854,93416.0,93400.0,0.214132]
[1734978703416,0.0020854,93416.0,93415.0,0.009]
[1734978703594,0.0020854,93416.0,93415.0,0.013]
[1734978703894,0.0010854,93416.0,93415.0,0.004]
[1734978704133,0.0020854,93416.0,93415.0,0.013]
[1734978704324,0.0010854,93416.0,93413.0,0.2141]
[1734978704529,0.0010854,93416.0,93415.0,0.006]
[1734978704530,0.0020854,93416.0,93415.0,0.006]
[1734978704943,0.0020854,93416.0,93415.0,0.25998632]
[1734978705186,0.0020854,93416.0,93415.0,0.26427132]
[1734978705628,0.0020854,93416.0,93415.0,0.006]
[1734978705976,0.0020854,93416.0,93415.0,0.008]
[1734978706641,0.0020854,93416.0,93415.0,0.006]
[1734978706919,0.0020854,93416.0,93415.0,0.008]
[1734978707050,0.2161814,93416.0,93415.0,0.008]
[1734978707457,0.214107,93412.0,93400.0,0.00015997]
[1734978708411,8.54e-05,93416.0,93401.0,0.12553309]
[1734978708586,8.54e-05,93416.0,93410.0,0.214109]
[1734978708796,8.54e-05,93416.0,93414.0,0.2141]
[1734978709778,8.54e-05,93416.0,93406.0,0.214118]
[1734978709779,0.001,93412.0,93406.0,0.214118]
[1734978710035,8.54e-05,93416.0,93402.0,0.214127]
[1734978710451,8.54e-05,93416.0,93400.0,0.00015997]
[1734978710452,8.54e-05,93416.0,93404.0,0.214123]
[1734978710632,8.54e-05,93416.0,93406.0,0.214119]
[1734978710809,8.54e-05,93416.0,93410.0,0.214108]
[1734978711224,8.54e-05,93416.0,93413.0,0.2141]
[1734978711625,8.54e-05,93416.0,93413.0,0.428202]
[1734978711828,8.54e-05,93416.0,93414.0,0.001]
[1734978712038,8.54e-05,93416.0,93415.0,0.214098]
[1734978712201,8.54e-05,93416.0,93414.0,0.001]
[1734978712422,8.54e-05,93416.0,93406.0,0.003]
[1734978712662,8.54e-05,93416.0,93408.0,0.214114]
[1734978712869,8.54e-05,93416.0,93413.0,0.002]
[1734978713247,8.54e-05,93416.0,93411.0,0.2142758]
[1734978713448,8.54e-05,93416.0,93413.0,0.005]
[1734978715082,8.54e-05,93416.0,93414.0,0.2141]
[1734978715991,8.54e-05,93416.0,93413.0,0.005]
[1734978716162,8.54e-05,93416.0,93413.0,0.007]
[1734978716476,0.214098,93415.0,93414.0,0.09575097]
[1734978716708,8.54e-05,93416.0,93414.0,0.10075097]
[1734978716911,8.54e-05,93416.0,93414.0,0.09575097]
[1734978717129,8.54e-05,93416.0,93414.0,0.09775097]
[1734978717426,8.54e-05,93416.0,93414.0,0.002]
[1734978717844,8.54e-05,93416.0,93414.0,0.003]
[1734978718259,8.54e-05,93416.0,93411.0,0.0001708]
[1734978718628,8.54e-05,93416.0,93414.0,0.001]
[1734978718629,0.428196,93415.0,93414.0,0.001]
[1734978718818,0.61408232,93415.0,93414.0,0.001]
[1734978719168,0.61408232,93415.0,93411.0,0.0001708]
[1734978719437,0.61408232,93415.0,93411.0,0.0011708]
[1734978719755,0.61408232,93415.0,93411.0,0.0001708]
[1734978720158,0.61708232,93415.0,93411.0,0.0001708]
[1734978720422,0.298998,93415.0,93411.0,0.0001708]
[1734978720649,0.0849,93415.0,93411.0,0.0001708]
[1734978720853,0.003,93415.0,93411.0,0.0001708]
[1734978721027,0.001,93415.0,93411.0,0.0001708]
[1734978721434,0.002,93415.0,93411.0,0.0001708]
[1734978722306,0.002,93415.0,93412.0,0.214105]
[1734978722742,8.54e-05,93416.0,93412.0,0.214105]
[1734978723410,8.54e-05,93416.0,93411.0,0.0001708]
[1734978723624,8.54e-05,93416.0,93412.0,0.002]
[1734978723774,0.214098,93415.0,93411.0,0.0001708]
[1734978723976,0.02142688,93414.0,93411.0,0.0001708]
[1734978724177,0.02142688,93414.0,93412.0,0.002]
[1734978724537,8.54e-05,93416.0,93411.0,0.0001708]
[1734978724709,8.54e-05,93416.0,93412.0,0.001]
[1734978725109,0.2134218,93423.0,93411.0,0.0021708]
[1734978725314,0.10398632,93422.0,93411.0,0.0021708]
[1734978725511,0.214084,93421.0,93412.0,0.001]
[1734978725694,0.0001708,93427.0,93412.0,0.001]
[1734978725695,0.0818,93415.0,93412.0,0.001]
[1734978725893,0.2804,93413.0,93412.0,0.001]
[1734978726094,0.545905,93412.0,93411.0,0.0001708]
[1734978726302,0.64989132,93412.0,93411.0,0.0001708]
[1734978727079,0.54989132,93412.0,93411.0,0.0001708]
[1734978727281,0.65289132,93412.0,93411.0,0.0001708]
[1734978727694,0.74989132,93412.0,93411.0,0.0001708]
[1734978728089,0.44453,93401.0,93400.0,0.00015997]
[1734978728273,0.54851632,93401.0,93400.0,0.00015997]
[1734978729662,0.55351632,93401.0,93400.0,0.00015997]
[1734978729860,0.55551632,93401.0,93400.0,0.00015997]
[1734978730076,0.55051632,93401.0,93400.0,0.00015997]
[1734978730268,0.55451632,93401.0,93400.0,0.00015997]
[1734978730876,0.55651632,93401.0,93400.0,0.00015997]
[1734978731477,0.55451632,93401.0,93400.0,0.00015997]
[1734978731695,0.55551632,93401.0,93400.0,0.00015997]
[1734978732343,0.55451632,93401.0,93400.0,0.00015997]
[1734978732540,0.55651632,93401.0,93400.0,0.00015997]
[1734978732757,0.55051632,93401.0,93400.0,0.00015997]
[1734978732958,0.55451632,93401.0,93400.0,0.00015997]
[1734978733398,0.55051632,93401.0,93400.0,0.00015997]
[1734978733568,0.55551632,93401.0,93400.0,0.00015997]
[1734978734833,0.55351632,93401.0,93400.0,0.00015997]
[1734978735251,0.65051632,93401.0,93400.0,9.7e-07]
[1734978735457,0.70181632,93401.0,93400.0,9.7e-07]
[1734978735732,0.79981632,93401.0,93400.0,9.7e-07]
[1734978735909,0.79981632,93401.0,93394.0,0.0001708]
[1734978735910,0.546344,93395.0,93394.0,0.0001708]
[1734978736117,0.65033032,93395.0,93394.0,0.0001708]
[1734978736543,0.55033032,93395.0,93394.0,0.0001708]
[1734978736750,0.65033032,93395.0,93394.0,0.0001708]
[1734978738059,0.214206,93368.0,93361.0,0.0009988]
[1734978738412,0.214206,93368.0,93352.0,0.214242]
[1734978738941,0.214199,93371.0,93352.0,0.214242]
[1734978739358,0.10398632,93390.0,93367.0,0.00061885]
[1734978739564,0.001,93368.0,93367.0,0.00561885]
[1734978739794,0.001,93368.0,93367.0,0.00061885]
[1734978740204,0.001,93368.0,93367.0,0.00461885]
[1734978740401,0.214185,93377.0,93367.0,0.00261885]
[1734978741263,0.214185,93377.0,93367.0,0.00061885]
[1734978741810,0.001,93368.0,93367.0,0.00561885]
[1734978742179,0.10398632,93390.0,93376.0,0.214187]
[1734978742406,0.0794,93403.0,93386.0,0.214163]
[1734978742615,0.0794,93403.0,93377.0,0.00107083]
[1734978742616,0.214128,93402.0,93384.0,0.214169]
[1734978742850,0.10398632,93401.0,93377.0,0.0009964]
[1734978743060,0.214164,93386.0,93377.0,0.0009964]
[1734978743278,0.10398632,93385.0,93377.0,0.0009964]
[1734978743518,0.214179,93380.0,93368.0,0.00145837]
[1734978743735,0.31816532,93380.0,93368.0,0.00145837]
[1734978743938,0.31816532,93380.0,93369.0,0.03134933]
[1734978744267,0.10398632,93380.0,93369.0,0.03134933]
[1734978744877,0.15,93396.0,93384.0,0.00145837]
[1734978745201,0.214144,93395.0,93384.0,0.00145837]
[1734978745403,0.214136,93399.0,93384.0,0.00145837]
[1734978745595,0.10398632,93399.0,93384.0,0.00145837]
[1734978745826,0.214137,93398.0,93384.0,0.00145837]
[1734978746001,0.214137,93398.0,93387.0,0.00145837]
[1734978746222,0.001,93396.0,93387.0,0.00145837]
[1734978746869,0.001,93396.0,93388.0,0.21416]
[1734978746870,0.002,93396.0,93388.0,0.21416]
[1734978747053,0.002,93396.0,93389.0,0.00145837]
[1734978747184,0.001,93396.0,93389.0,0.00145837]
[1734978747999,0.214122,93405.0,93389.0,0.00145837]
[1734978748198,0.10398632,93404.0,93389.0,0.00345837]
[1734978748406,0.10398632,93404.0,93392.0,0.00145837]
[1734978749440,0.10398632,93404.0,93393.0,0.214148]
[1734978750426,0.21411,93410.0,93395.0,0.00145837]
[1734978750575,0.10398632,93409.0,93395.0,0.00145837]
[1734978750776,8.54e-05,93404.0,93395.0,0.00145837]
[1734978751210,8.54e-05,93404.0,93403.0,0.00145837]
[1734978752416,0.00024522,93404.0,93396.0,0.214141]
[1734978752644,0.00024522,93404.0,93392.0,0.0001708]
[1734978752645,0.00024522,93404.0,93399.0,0.214135]
[1734978752865,8.122e-05,93404.0,93399.0,0.47111518]
[1734978753067,8.122e-05,93404.0,93401.0,0.42826]
[1734978753872,8.122e-05,93404.0,93403.0,0.001]
[1734978754273,8.122e-05,93404.0,93401.0,0.42826]
[1734978754479,0.00108122,93404.0,93401.0,0.43726]
[1734978754900,8.122e-05,93404.0,93401.0,0.43226]
[1734978755103,8.122e-05,93404.0,93402.0,0.00107051]
[1734978755306,0.00108122,93404.0,93403.0,0.293825]
[1734978755665,0.00108122,93404.0,93403.0,0.71791132]
[1734978755849,0.00208122,93404.0,93403.0,0.81791132]
[1734978756273,8.54e-05,93415.0,93414.0,0.7089]
[1734978756427,8.54e-05,93415.0,93414.0,1.04254364]
[1734978757416,4e-07,93415.0,93414.0,1.29254364]
[1734978757624,0.001,93430.0,93420.0,0.4766]
[1734978757833,0.001,93430.0,93420.0,0.81767232]
[1734978759260,0.0010854,93421.0,93420.0,0.81767232]
[1734978759472,0.0010854,93421.0,93420.0,1.76540897]
[1734978759628,0.001,93430.0,93425.0,0.613675]
[1734978759829,0.001,93430.0,93425.0,0.71766132]
[1734978760038,0.001,93430.0,93425.0,0.81766132]
[1734978761088,0.0031708,93426.0,93425.0,0.81766132]
[1734978761285,0.0001708,93426.0,93425.0,0.87881353]
[1734978761513,0.0011708,93426.0,93425.0,0.87881353]
[1734978761852,0.0041708,93426.0,93425.0,0.87881353]
[1734978762993,0.0031708,93426.0,93425.0,0.87881353]
[1734978763185,0.0041708,93426.0,93425.0,1.37559628]
[1734978763393,0.0041708,93426.0,93425.0,1.62559628]
[1734978763679,0.0031708,93426.0,93425.0,1.62559628]
[1734978764081,0.001,93430.0,93425.0,1.27244061]
[1734978764286,0.001,93430.0,93426.0,0.45461032]
[1734978764501,0.001,93430.0,93426.0,0.37698632]
[1734978764703,0.001,93430.0,93426.0,0.27698632]
[1734978764906,0.0801,93456.0,93442.0,0.42807]
[1734978765084,0.0801,93456.0,93446.0,0.214027]
[1734978765279,0.00033097,93461.0,93431.0,0.173]
[1734978765485,0.00033097,93461.0,93451.0,0.214014]
[1734978765661,0.00033097,93461.0,93455.0,0.214005]
[1734978766219,0.00033097,93461.0,93459.0,0.213996]
[1734978767432,0.00033097,93461.0,93459.0,0.216996]
[1734978767734,0.00033097,93461.0,93459.0,0.222996]
[1734978767960,0.00033097,93461.0,93460.0,0.00106988]
[1734978768516,0.00033097,93461.0,93460.0,0.06627717]
[1734978768744,0.00033097,93461.0,93460.0,0.34326349]
[1734978768909,0.00033097,93461.0,93460.0,0.44219361]